fUSD/lending_fUSD_20250525
["ID","MTS","AMOUNT","RATE_DAILY","PERIOD"]
[362356309,1748214634092,-220.95986151,0.00019769,2]
[362356310,1748214634102,-150.0,0.00019777,2]
[362356311,1748214634111,-150.0,0.00019777,2]
[362356312,1748214634121,-603.75234791,0.00019778,2]
[362356313,1748214634136,-2232.3887144,0.00019778,2]
[362356314,1748214634147,-6163.46778645,0.00019778,2]
[362356315,1748214634170,-4906.28337191,0.00019778,2]
[362356316,1748214634181,-6571.52911303,0.00019778,2]
[362356317,1748214634190,-1000.0,0.0001978,2]
[362356318,1748214634201,-150.0,0.0001978,2]
[362356319,1748214634210,-270.0497777,0.0001979,2]
[362356320,1748214634220,-150.0,0.00019795,2]
[362356321,1748214634229,-750.3504,0.00019799,2]
[362356322,1748214634239,-3492.06755825,0.00019799,2]
[362356323,1748214634250,-383.12875825,0.00019799,2]
[362356324,1748214634311,-207.90311053,0.00019655,2]
[362356325,1748214634320,-195.47774773,0.00019655,2]
[362356326,1748214634329,-152.87987163,0.00019655,2]
[362356328,1748214638168,-519.750011,0.00019,2]
[362356329,1748214638179,-1068.21900387,0.00019,2]
[362356330,1748214638195,-534.82997,0.00019,2]
[362356331,1748214638207,-362.82358289,0.00019,2]
[362356332,1748214638219,-1647.60691064,0.00019,2]
[362356333,1748214638228,-7609.807687,0.00019644,2]
[362356334,1748214638237,-300.0,0.00019654,2]
[362356335,1748214638247,-347.12012837,0.00019655,2]
[362356336,1748214638256,-500.0,0.00019655,2]
[362356337,1748214638266,-500.0,0.00019655,2]
[362356338,1748214638275,-472.63082191,0.00019655,2]
[362356339,1748214638285,-881.0,0.00019671,2]
[362356340,1748214638294,-420.0,0.00019726,2]
[362356341,1748214638304,-1124.8036835,0.00019799,2]
[362356342,1748214638313,-150.0,0.00019799,2]
[362356343,1748214638322,-150.0,0.00019799,2]
[362356344,1748214638331,-300.0,0.000198,7]
[362356345,1748214638341,-150.0,0.00019801,2]
[362356346,1748214638349,-150.0,0.00019805,2]
[362356347,1748214638359,-420.0,0.00019808,2]
[362356348,1748214638368,-420.0,0.00019808,2]
[362356349,1748214638378,-420.0,0.00019808,2]
[362356350,1748214638387,-420.0,0.00019808,2]
[362356351,1748214638396,-420.0,0.00019808,2]
[362356352,1748214638406,-420.0,0.00019808,2]
[362356353,1748214638415,-420.0,0.00019808,2]
[362356354,1748214638424,-420.0,0.00019808,2]
[362356355,1748214638434,-299.83276848,0.00019808,2]
[362356356,1748214638443,-420.0,0.00019808,2]
[362356357,1748214638454,-420.0,0.00019808,2]
[362356359,1748214638464,-420.0,0.00019808,2]
[362356361,1748214638473,-420.0,0.00019808,2]
[362356363,1748214638483,-420.0,0.00019808,2]
[362356365,1748214638492,-420.0,0.00019808,2]
[362356385,1748214638679,-420.0,0.00019808,2]
[362356387,1748214638688,-20477.4213337,0.00019809,2]
[362356389,1748214638698,-300.0,0.00019817,2]
[362356391,1748214638712,-150.0,0.00019819,2]
[362356393,1748214638721,-150.0,0.00019822,2]
[362356395,1748214638731,-300.0,0.00019822,2]
[362356397,1748214638740,-150.0,0.00019824,2]
[362356399,1748214638749,-1040.44311141,0.00019833,2]
[362356401,1748214638759,-150.0,0.00019834,2]
[362356403,1748214638768,-150.0,0.00019838,2]
[362356405,1748214638777,-20477.4213337,0.00019839,2]
[362356407,1748214638786,-1000.0,0.00019843,2]
[362356409,1748214638795,-420.0,0.00019844,2]
[362356411,1748214638805,-500.0,0.00019844,2]
[362356413,1748214638814,-500.0,0.00019844,2]
[362356415,1748214638824,-420.0,0.00019844,2]
[362356417,1748214638833,-420.0,0.00019844,2]
[362356419,1748214638842,-420.0,0.00019844,2]
[362356421,1748214638851,-420.0,0.00019844,2]
[362356423,1748214638860,-420.0,0.00019844,2]
[362356425,1748214638869,-222.3366853,0.00019844,2]
[362356426,1748214638879,-420.0,0.00019844,2]
[362356428,1748214638888,-420.0,0.00019844,2]
[362356430,1748214638896,-420.0,0.00019844,2]
[362356432,1748214638905,-420.0,0.00019844,2]
[362356434,1748214638914,-456.66046086,0.00019844,2]
[362356436,1748214638923,-420.0,0.00019844,2]
[362356438,1748214638932,-420.0,0.00019844,2]
[362356440,1748214638942,-420.0,0.00019844,2]
[362356442,1748214638955,-420.0,0.00019844,2]
[362356444,1748214638964,-420.0,0.00019844,2]
[362356446,1748214638973,-420.0,0.00019844,2]
[362356448,1748214638986,-420.0,0.00019844,2]
[362356450,1748214638996,-150.0,0.00019846,2]
[362356452,1748214639005,-300.0,0.00019847,2]
[362356454,1748214639014,-150.0,0.00019853,2]
[362356456,1748214639023,-150.0,0.00019855,2]
[362356458,1748214639033,-300.0,0.00019855,2]
[362356460,1748214639042,-150.0,0.00019855,2]
[362356462,1748214639051,-1000.0,0.00019865,2]
[362356464,1748214639060,-16066.69051373,0.0001987,2]
[362356466,1748214639073,-4410.73081997,0.0001987,2]
[362356468,1748214639083,-500.0,0.00019873,2]
[362356470,1748214639092,-500.0,0.00019873,2]
[362356472,1748214639101,-156.98019199,0.00019873,2]
[362356474,1748214639110,-160.48922046,0.00019873,2]
[362356476,1748214639119,-500.0,0.00019873,2]
[362356478,1748214639129,-500.0,0.00019873,2]
[362356480,1748214639138,-501.78051783,0.00019873,2]
[362356482,1748214639147,-173.23150445,0.00019873,2]
[362356484,1748214639157,-159.4117376,0.00019873,2]
[362356486,1748214639166,-161.52593979,0.00019873,2]
[362356488,1748214639176,-500.0,0.00019873,2]
[362356490,1748214639185,-500.0,0.00019873,2]
[362356492,1748214639194,-500.0,0.00019873,2]
[362356494,1748214639205,-500.0,0.00019873,2]
[362356496,1748214639214,-500.0,0.00019873,2]
[362356498,1748214639223,-296.92114305,0.00019873,2]
[362356500,1748214639232,-500.0,0.00019873,2]
[362356502,1748214639242,-500.0,0.00019873,2]
[362356504,1748214639251,-500.0,0.00019873,2]
[362356506,1748214639261,-500.0,0.00019873,2]
[362356508,1748214639270,-1000.0,0.00019873,2]
[362356510,1748214639280,-190.35717801,0.00019873,2]
[362356512,1748214639289,-1000.0,0.00019874,2]
[362356514,1748214639298,-150.0,0.00019877,2]
[362356516,1748214639308,-150.0,0.00019879,2]
[362356518,1748214639317,-422.06450214,0.00019884,2]
[362356520,1748214639327,-420.0,0.00019884,2]
[362356522,1748214639336,-420.0,0.00019884,2]
[362356524,1748214639345,-420.0,0.00019884,2]
[362356526,1748214639355,-420.0,0.00019884,2]
[362356528,1748214639365,-420.0,0.00019884,2]
[362356530,1748214639375,-420.0,0.00019884,2]
[362356532,1748214639384,-335.2319562,0.00019884,2]
[362356534,1748214639394,-420.0,0.00019884,2]
[362356536,1748214639404,-436.09699178,0.00019885,2]
[362356537,1748214639414,-420.0,0.00019885,2]
[362356539,1748214639424,-420.0,0.00019885,2]
[362356541,1748214639434,-420.0,0.00019885,2]
[362356543,1748214639444,-420.0,0.00019885,2]
[362356545,1748214639454,-420.0,0.00019885,2]
[362356546,1748214639463,-427.98438562,0.00019885,2]
[362356547,1748214639472,-420.0,0.00019885,2]
[362356548,1748214639482,-420.0,0.00019885,2]
[362356549,1748214639491,-420.0,0.00019885,2]
[362356550,1748214639500,-420.0,0.00019885,2]
[362356551,1748214639509,-420.0,0.00019885,2]
[362356552,1748214639518,-541.36347616,0.00019885,2]
[362356553,1748214639527,-565.43,0.00019885,2]
[362356554,1748214639537,-64.74467007,0.00019885,2]
[362356555,1748214639553,-355.25532993,0.00019885,2]
[362356556,1748214639563,-420.0,0.00019885,2]
[362356557,1748214639572,-491.99,0.00019885,2]
[362356558,1748214639581,-420.0,0.00019885,2]
[362356559,1748214639590,-420.0,0.00019885,2]
[362356560,1748214639600,-423.1228218,0.00019885,2]
[362356561,1748214639611,-420.0,0.00019885,2]
[362356562,1748214639620,-420.0,0.00019885,2]
[362356563,1748214639630,-428.0149893,0.00019885,2]
[362356564,1748214639639,-420.0,0.00019885,2]
[362356565,1748214639648,-420.0,0.00019885,2]
[362356566,1748214639658,-420.0,0.00019885,2]
[362356567,1748214639667,-420.0,0.00019885,2]
[362356568,1748214639676,-420.0,0.00019885,2]
[362356569,1748214639686,-420.0,0.00019885,2]
[362356570,1748214639697,-420.0,0.00019885,2]
[362356571,1748214639708,-423.67501387,0.00019885,2]
[362356572,1748214639717,-420.0,0.00019885,2]
[362356573,1748214639726,-420.0,0.00019885,2]
[362356574,1748214639736,-420.0,0.00019885,2]
[362356575,1748214639748,-422.82045189,0.00019885,2]
[362356576,1748214639758,-420.0,0.00019885,2]
[362356577,1748214639769,-426.37400728,0.00019885,2]
[362356578,1748214639779,-495.43186192,0.00019885,2]
[362356579,1748214639789,-420.0,0.00019885,2]
[362356580,1748214639798,-297.31552401,0.00019885,2]
[362356581,1748214639812,-122.68447599,0.00019885,2]
[362356582,1748214639822,-420.0,0.00019885,2]
[362356583,1748214639832,-420.0,0.00019885,2]
[362356584,1748214639843,-420.0,0.00019885,2]
[362356585,1748214639853,-420.0,0.00019885,2]
[362356586,1748214639863,-428.81726124,0.00019885,2]
[362356587,1748214639873,-420.0,0.00019885,2]
[362356588,1748214639884,-185.05,0.00019885,2]
[362356589,1748214639894,-292.48,0.00019885,2]
[362356590,1748214639905,-420.0,0.00019885,2]
[362356591,1748214639917,-420.0,0.00019885,2]
[362356592,1748214639928,-420.0,0.00019885,2]
[362356593,1748214639938,-550.41,0.00019885,2]
[362356594,1748214639948,-420.0,0.00019885,2]
[362356595,1748214639959,-528.97,0.00019885,2]
[362356596,1748214639968,-420.0,0.00019885,2]
[362356597,1748214639978,-424.58,0.00019885,2]
[362356598,1748214639991,-420.0,0.00019885,2]
[362356599,1748214640001,-420.0,0.00019885,2]
[362356600,1748214640011,-420.0,0.00019885,2]
[362356601,1748214640021,-420.0,0.00019885,2]
[362356602,1748214640031,-420.0,0.00019885,2]
[362356603,1748214640041,-420.0,0.00019885,2]
[362356605,1748214640053,-420.0,0.00019885,2]
[362356606,1748214640064,-550.34003894,0.00019885,2]
[362356607,1748214640074,-354.68,0.00019885,2]
[362356608,1748214640083,-420.0,0.00019885,2]
[362356609,1748214640093,-466.27,0.00019885,2]
[362356611,1748214640103,-420.0,0.00019885,2]
[362356612,1748214640113,-420.0,0.00019885,2]
[362356614,1748214640123,-186.73,0.00019885,2]
[362356616,1748214640132,-420.0,0.00019885,2]
[362356619,1748214640143,-420.0,0.00019885,2]
[362356621,1748214640153,-420.0,0.00019885,2]
[362356622,1748214640163,-420.0,0.00019885,2]
[362356623,1748214640175,-395.08,0.00019885,2]
[362356624,1748214640185,-420.0,0.00019885,2]
[362356625,1748214640195,-420.0,0.00019885,2]
[362356626,1748214640205,-420.0,0.00019885,2]
[362356627,1748214640215,-420.0,0.00019885,2]
[362356628,1748214640225,-230.9,0.00019885,2]
[362356629,1748214640234,-420.0,0.00019885,2]
[362356630,1748214640244,-420.0,0.00019885,2]
[362356631,1748214640254,-420.0,0.00019885,2]
[362356632,1748214640264,-420.0,0.00019885,2]
[362356633,1748214640274,-396.07,0.00019885,2]
[362356634,1748214640284,-420.0,0.00019885,2]
[362356635,1748214640294,-250.46,0.00019885,2]
[362356636,1748214640304,-420.0,0.00019885,2]
[362356637,1748214640314,-420.0,0.00019885,2]
[362356638,1748214640324,-420.0,0.00019885,2]
[362356639,1748214640334,-159.4144381,0.00019885,2]
[362356640,1748214640343,-420.0,0.00019885,2]
[362356641,1748214640354,-424.00522846,0.00019885,2]
[362356642,1748214640364,-420.0,0.00019885,2]
[362356643,1748214640373,-420.0,0.00019885,2]
[362356644,1748214640384,-420.0,0.00019885,2]
[362356645,1748214640396,-420.0,0.00019885,2]
[362356646,1748214640407,-500.0,0.00019885,2]
[362356647,1748214640418,-245.31246884,0.00019885,2]
[362356648,1748214640428,-420.0,0.00019885,2]
[362356649,1748214640438,-166.57,0.00019885,2]
[362356650,1748214640447,-420.0,0.00019885,2]
[362356651,1748214640458,-420.0,0.00019885,2]
[362356652,1748214640468,-420.0,0.00019885,2]
[362356653,1748214640477,-197.28,0.00019885,2]
[362356654,1748214640486,-420.0,0.00019885,2]
[362356655,1748214640496,-420.0,0.00019885,2]
[362356656,1748214640505,-420.0,0.00019885,2]
[362356657,1748214640514,-420.0,0.00019885,2]
[362356658,1748214640523,-501.74,0.00019885,2]
[362356659,1748214640533,-420.0,0.00019885,2]
[362356660,1748214640542,-420.0,0.00019885,2]
[362356661,1748214640551,-420.0,0.00019885,2]
[362356662,1748214640561,-266.5,0.00019885,2]
[362356663,1748214640571,-420.0,0.00019885,2]
[362356664,1748214640580,-420.0,0.00019885,2]
[362356665,1748214640589,-420.0,0.00019885,2]
[362356666,1748214640598,-551.76,0.00019885,2]
[362356667,1748214640608,-420.0,0.00019885,2]
[362356668,1748214640617,-427.79,0.00019885,2]
[362356669,1748214640626,-326.95,0.00019885,2]
[362356670,1748214640635,-420.0,0.00019885,2]
[362356671,1748214640644,-420.0,0.00019885,2]
[362356672,1748214640653,-420.0,0.00019885,2]
[362356673,1748214640662,-206.22,0.00019885,2]
[362356674,1748214640671,-213.34,0.00019885,2]
[362356675,1748214640681,-420.0,0.00019885,2]
[362356676,1748214640691,-430.43984828,0.00019885,2]
[362356677,1748214640700,-378.73,0.00019885,2]
[362356678,1748214640710,-420.0,0.00019885,2]
[362356679,1748214640720,-420.0,0.00019885,2]
[362356680,1748214640729,-420.0,0.00019885,2]
[362356681,1748214640739,-440.33417969,0.00019885,2]
[362356682,1748214640748,-519.12,0.00019885,2]
[362356683,1748214640758,-426.78511727,0.00019885,2]
[362356684,1748214640767,-420.0,0.00019885,2]
[362356685,1748214640777,-296.45,0.00019885,2]
[362356686,1748214640786,-420.0,0.00019885,2]
[362356687,1748214640795,-420.0,0.00019885,2]
[362356688,1748214640804,-420.0,0.00019885,2]
[362356689,1748214640813,-420.0,0.00019885,2]
[362356690,1748214640823,-420.0,0.00019885,2]
[362356692,1748214640832,-420.0,0.00019885,2]
[362356694,1748214640842,-437.81174001,0.00019885,2]
[362356696,1748214640852,-449.86991429,0.00019885,2]
[362356698,1748214640861,-420.0,0.00019885,2]
[362356700,1748214640870,-420.0,0.00019885,2]
[362356702,1748214640879,-566.0058843,0.00019885,2]
[362356703,1748214640888,-420.0,0.00019885,2]
[362356705,1748214640898,-420.0,0.00019885,2]
[362356707,1748214640907,-420.0,0.00019885,2]
[362356710,1748214640917,-420.0,0.00019885,2]
[362356712,1748214640927,-242.7,0.00019885,2]
[362356714,1748214640936,-420.0,0.00019885,2]
[362356716,1748214640945,-420.0,0.00019885,2]
[362356717,1748214640954,-368.69,0.00019885,2]
[362356719,1748214640964,-544.10944931,0.00019885,2]
[362356721,1748214640973,-420.0,0.00019885,2]
[362356723,1748214640985,-420.0,0.00019885,2]
[362356725,1748214640995,-420.0,0.00019885,2]
[362356727,1748214641005,-420.0,0.00019885,2]
[362356729,1748214641014,-420.0,0.00019885,2]
[362356731,1748214641023,-377.37310573,0.00019885,2]
[362356733,1748214641032,-420.0,0.00019885,2]
[362356735,1748214641041,-420.0,0.00019885,2]
[362356741,1748214641093,-420.0,0.00019885,2]
[362356743,1748214641103,-420.0,0.00019885,2]
[362356745,1748214641112,-481.69029412,0.00019885,2]
[362356747,1748214641121,-420.0,0.00019885,2]
[362356748,1748214641130,-420.0,0.00019885,2]
[362356750,1748214641139,-420.0,0.00019885,2]
[362356752,1748214641148,-420.0,0.00019885,2]
[362356754,1748214641158,-565.58,0.00019885,2]
[362356756,1748214641167,-420.0,0.00019885,2]
[362356758,1748214641175,-261.47785605,0.00019885,2]
[362356760,1748214641184,-420.0,0.00019885,2]
[362356762,1748214641193,-420.0,0.00019885,2]
[362356764,1748214641202,-300.8,0.00019885,2]
[362356766,1748214641212,-420.0,0.00019885,2]
[362356768,1748214641221,-420.0,0.00019885,2]
[362356770,1748214641230,-426.148939,0.00019885,2]
[362356772,1748214641239,-420.0,0.00019885,2]
[362356774,1748214641248,-420.0,0.00019885,2]
[362356776,1748214641257,-185.94,0.00019885,2]
[362356778,1748214641267,-420.0,0.00019885,2]
[362356779,1748214641275,-420.0,0.00019885,2]
[362356781,1748214641284,-406.48,0.00019885,2]
[362356783,1748214641293,-420.0,0.00019885,2]
[362356785,1748214641302,-420.0,0.00019885,2]
[362356787,1748214641312,-420.0,0.00019885,2]
[362356788,1748214641321,-420.0,0.00019885,2]
[362356789,1748214641331,-443.36,0.00019885,2]
[362356790,1748214641341,-420.0,0.00019885,2]
[362356791,1748214641351,-420.0,0.00019885,2]
[362356792,1748214641360,-420.0,0.00019885,2]
[362356793,1748214641369,-436.22,0.00019885,2]
[362356794,1748214641378,-420.0,0.00019885,2]
[362356795,1748214641388,-500.0,0.00019885,2]
[362356796,1748214641397,-420.0,0.00019885,2]
[362356797,1748214641405,-420.0,0.00019885,2]
[362356798,1748214641415,-420.0,0.00019885,2]
[362356799,1748214641424,-420.0,0.00019885,2]
[362356800,1748214641434,-420.0,0.00019885,2]
[362356801,1748214641444,-423.25063819,0.00019885,2]
[362356802,1748214641453,-420.0,0.00019885,2]
[362356803,1748214641461,-420.0,0.00019885,2]
[362356804,1748214641471,-420.0,0.00019885,2]
[362356805,1748214641480,-489.64,0.00019885,2]
[362356806,1748214641490,-420.0,0.00019885,2]
[362356807,1748214641499,-420.0,0.00019885,2]
[362356808,1748214641509,-420.0,0.00019885,2]
[362356809,1748214641519,-1035.51001284,0.00019886,2]
[362356810,1748214641529,-283.76623544,0.00019886,2]
[362356811,1748214641538,-1000.0,0.00019888,2]
[362356812,1748214641547,-150.0,0.00019889,2]
[362356813,1748214641556,-150.0,0.00019889,2]
[362356814,1748214641565,-150.0,0.00019891,2]
[362356815,1748214641574,-194.50514351,0.00019892,2]
[362356816,1748214641583,-194.50514351,0.00019893,2]
[362356817,1748214641594,-194.50514351,0.00019895,2]
[362356818,1748214641605,-190.35717801,0.00019895,2]
[362356819,1748214641616,-194.50514351,0.00019896,2]
[362356820,1748214641628,-194.50514351,0.00019897,2]
[362356821,1748214641638,-791.52,0.00019898,2]
[362356822,1748214641649,-174.56,0.00019898,2]
[362356823,1748214641659,-194.50514351,0.00019899,2]
[362356824,1748214641668,-405.24827217,0.00019899,2]
[362356825,1748214641677,-420.0,0.00019899,2]
[362356826,1748214641686,-314.07,0.00019899,2]
[362356827,1748214641695,-420.0,0.00019899,2]
[362356828,1748214641704,-423.12583207,0.00019899,2]
[362356829,1748214641713,-420.0,0.00019899,2]
[362356830,1748214641722,-420.0,0.00019899,2]
[362356831,1748214641733,-420.0,0.00019899,2]
[362356832,1748214641743,-420.0,0.00019899,2]
[362356833,1748214641755,-420.0,0.00019899,2]
[362356834,1748214641765,-373.1,0.00019899,2]
[362356835,1748214641777,-420.0,0.00019899,2]
[362356836,1748214641787,-420.0,0.00019899,2]
[362356837,1748214641796,-420.0,0.00019899,2]
[362356838,1748214641805,-420.0,0.00019899,2]
[362356839,1748214641814,-420.0,0.00019899,2]
[362356840,1748214641824,-420.0,0.00019899,2]
[362356841,1748214641836,-420.0,0.00019899,2]
[362356842,1748214641846,-420.0,0.00019899,2]
[362356843,1748214641855,-420.0,0.00019899,2]
[362356844,1748214641865,-345.85,0.00019899,2]
[362356845,1748214641875,-420.0,0.00019899,2]
[362356846,1748214641884,-197.81,0.00019899,2]
[362356847,1748214641894,-420.0,0.00019899,2]
[362356848,1748214641906,-420.0,0.00019899,2]
[362356849,1748214641916,-420.0,0.00019899,2]
[362356850,1748214641927,-420.0,0.00019899,2]
[362356851,1748214641937,-420.0,0.00019899,2]
[362356852,1748214641947,-420.0,0.00019899,2]
[362356853,1748214641957,-420.0,0.00019899,2]
[362356854,1748214641967,-420.0,0.00019899,2]
[362356855,1748214641977,-420.0,0.00019899,2]
[362356856,1748214641991,-420.0,0.00019899,2]
[362356857,1748214642001,-420.0,0.00019899,2]
[362356858,1748214642010,-420.0,0.00019899,2]
[362356859,1748214642019,-287.84,0.00019899,2]
[362356860,1748214642030,-500.0,0.00019899,2]
[362356861,1748214642039,-420.0,0.00019899,2]
[362356862,1748214642048,-392.94,0.00019899,2]
[362356863,1748214642058,-420.0,0.00019899,2]
[362356864,1748214642068,-420.0,0.00019899,2]
[362356865,1748214642079,-420.0,0.00019899,2]
[362356866,1748214642090,-420.0,0.00019899,2]
[362356867,1748214642100,-420.0,0.00019899,2]
[362356868,1748214642110,-234.36,0.00019899,2]
[362356869,1748214642119,-420.0,0.00019899,2]
[362356870,1748214642129,-420.0,0.00019899,2]
[362356871,1748214642140,-264.51,0.00019899,2]
[362356872,1748214642150,-420.0,0.00019899,2]
[362356873,1748214642160,-420.0,0.00019899,2]
[362356874,1748214642169,-420.0,0.00019899,2]
[362356875,1748214642179,-420.0,0.00019899,2]
[362356876,1748214642188,-420.0,0.00019899,2]
[362356877,1748214642198,-420.0,0.00019899,2]
[362356878,1748214642209,-420.0,0.00019899,2]
[362356879,1748214642218,-420.0,0.00019899,2]
[362356880,1748214642227,-420.0,0.00019899,2]
[362356881,1748214642236,-420.0,0.00019899,2]
[362356882,1748214642246,-420.0,0.00019899,2]
[362356883,1748214642256,-420.0,0.00019899,2]
[362356884,1748214642266,-420.0,0.00019899,2]
[362356885,1748214642276,-420.0,0.00019899,2]
[362356886,1748214642285,-450.5,0.00019899,2]
[362356887,1748214642295,-419.7,0.00019899,2]
[362356888,1748214642304,-420.0,0.00019899,2]
[362356889,1748214642313,-295.20132199,0.00019899,2]
[362356890,1748214642323,-420.0,0.00019899,2]
[362356891,1748214642332,-420.0,0.00019899,2]
[362356892,1748214642343,-420.0,0.00019899,2]
[362356893,1748214642352,-420.0,0.00019899,2]
[362356894,1748214642362,-500.0,0.00019899,2]
[362356895,1748214642372,-420.0,0.00019899,2]
[362356896,1748214642382,-420.0,0.00019899,2]
[362356897,1748214642392,-420.0,0.00019899,2]
[362356898,1748214642404,-420.0,0.00019899,2]
[362356899,1748214642415,-420.0,0.00019899,2]
[362356900,1748214642426,-420.0,0.00019899,2]
[362356901,1748214642436,-420.0,0.00019899,2]
[362356902,1748214642447,-164.6239195,0.000199,2]
[362356903,1748214642458,-20477.4213337,0.000199,2]
[362356904,1748214642467,-161.57530231,0.000199,2]
[362356905,1748214642476,-300.0,0.000199,7]
[362356906,1748214642486,-7088.44144914,0.000199,2]
[362356907,1748214642497,-2541.68078569,0.000199,2]
[362356908,1748214642509,-194.50514351,0.000199,2]
[362356909,1748214642519,-270.73871169,0.000199,2]
[362356910,1748214642528,-270.73871161,0.000199,2]
[362356911,1748214642539,-270.73871161,0.000199,2]
[362356912,1748214642548,-201.24508808,0.000199,2]
[362356913,1748214642557,-270.73871161,0.000199,2]
[362356914,1748214642566,-270.73871161,0.000199,2]
[362356915,1748214642575,-5800.0,0.000199,2]
[362356916,1748214642585,-270.73871161,0.000199,2]
[362356917,1748214642594,-270.73871161,0.000199,2]
[362356918,1748214642603,-270.73871161,0.000199,2]
[362356919,1748214642612,-270.73871161,0.000199,2]
[362356920,1748214642621,-29153.66437642,0.000199,2]
[362356921,1748214642630,-270.73871161,0.000199,2]
[362356922,1748214642640,-150.0,0.00019901,2]
[362356923,1748214642649,-150.0,0.00019915,2]
[362356924,1748214642658,-150.0,0.00019918,2]
[362356925,1748214642667,-150.0,0.00019919,2]
[362356926,1748214642676,-1000.0,0.00019922,2]
[362356927,1748214642687,-150.0,0.00019927,2]
[362356928,1748214642696,-1000.0,0.00019927,2]
[362356929,1748214642706,-150.0,0.00019927,2]
[362356930,1748214642715,-150.0,0.00019932,2]
[362356931,1748214642724,-150.0,0.00019945,2]
[362356932,1748214642734,-150.0,0.00019954,2]
[362356933,1748214642744,-150.0,0.00019956,2]
[362356934,1748214642753,-505.83607181,0.00019966,2]
[362356935,1748214642762,-1600.0,0.0001997,2]
[362356936,1748214642772,-903.22837266,0.0001997,2]
[362356937,1748214642781,-150.0,0.00019972,2]
[362356938,1748214642790,-177.12357453,0.00019972,2]
[362356939,1748214642799,-500.0,0.00019972,2]
[362356940,1748214642808,-183.08,0.00019972,2]
[362356941,1748214642817,-317.76,0.00019972,2]
[362356942,1748214642826,-420.0,0.00019972,2]
[362356943,1748214642835,-420.0,0.00019972,2]
[362356944,1748214642844,-388.14284135,0.00019972,2]
[362356945,1748214642854,-420.0,0.00019972,2]
[362356946,1748214642864,-420.0,0.00019972,2]
[362356947,1748214642873,-420.0,0.00019972,2]
[362356948,1748214642882,-420.0,0.00019972,2]
[362356949,1748214642891,-420.0,0.00019972,2]
[362356950,1748214642900,-420.0,0.00019972,2]
[362356951,1748214642910,-420.0,0.00019972,2]
[362356952,1748214642919,-420.0,0.00019972,2]
[362356953,1748214642928,-16986.0,0.00019973,2]
[362356954,1748214642938,-18586.0,0.00019973,2]
[362356956,1748214642947,-159.39865393,0.00019973,2]
[362356957,1748214642957,-506.15028238,0.00019973,2]
[362356958,1748214642967,-500.0,0.00019973,2]
[362356959,1748214642976,-500.0,0.00019973,2]
[362356960,1748214642990,-500.0,0.00019973,2]
[362356961,1748214643000,-505.17510268,0.00019973,2]
[362356962,1748214643009,-500.0,0.00019973,2]
[362356963,1748214643019,-159.42420452,0.00019973,2]
[362356964,1748214643028,-157.88066943,0.00019973,2]
[362356965,1748214643037,-500.0,0.00019973,2]
[362356966,1748214643046,-160.97132094,0.00019973,2]
[362356967,1748214643055,-500.0,0.00019973,2]
[362356968,1748214643064,-150.0,0.00019973,2]